bitfinex/quotes_BTCUSD_20251116
["timestamp","ask_amount","ask_price","bid_price","bid_amount"]
[1763270759993,0.00045042,96137.0,96136.0,0.06613874]
[1763270760437,0.00045042,96137.0,96136.0,0.04341874]
[1763270761327,0.01632057,96168.0,96146.0,0.04341874]
[1763270761548,0.0002,96170.0,96146.0,0.04341874]
[1763270761549,0.16123402,96170.0,96169.0,0.12851215]
[1763270761776,0.00033512,96170.0,96169.0,0.10410215]
[1763270762005,0.03605,96169.0,96154.0,0.10410215]
[1763270762220,0.32206804,96164.0,96154.0,0.10410215]
[1763270762432,0.16103402,96164.0,96154.0,0.10410215]
[1763270762643,0.16103402,96164.0,96163.0,0.02442]
[1763270762851,0.00033512,96170.0,96163.0,0.02442]
[1763270763071,0.00033512,96170.0,96169.0,0.10410215]
[1763270763923,0.01658512,96170.0,96169.0,0.10410215]
[1763270764579,0.00033512,96170.0,96169.0,0.10410215]
[1763270770273,0.00033512,96170.0,96162.0,0.0085]
[1763270770473,0.02804,96163.0,96157.0,0.04341874]
[1763270770713,0.01179,96163.0,96158.0,0.0085]
[1763270772208,0.18293745,96167.0,96158.0,0.0085]
[1763270773581,0.00033512,96170.0,96166.0,0.01592]
[1763270773790,0.00033512,96170.0,96169.0,0.10410215]
[1763270774203,0.00033512,96170.0,96169.0,0.12489887]
[1763270774407,0.00033512,96170.0,96169.0,0.14904887]
[1763270774624,0.00033512,96170.0,96169.0,0.12489887]
[1763270775242,0.00033512,96170.0,96169.0,0.10410215]
[1763270776746,0.01669512,96170.0,96169.0,0.10410215]
[1763270777357,0.01669512,96170.0,96159.0,0.0277411]
[1763270777565,0.01669512,96170.0,96169.0,0.10410215]
[1763270777769,0.03610085,96170.0,96169.0,0.10410215]
[1763270778783,0.01974085,96170.0,96169.0,0.10410215]
[1763270781430,0.03606035,96170.0,96169.0,0.10410215]
[1763270783105,0.05242035,96170.0,96164.0,0.0277411]
[1763270783329,0.05242035,96170.0,96130.0,0.01999998]
[1763270783330,0.03301462,96170.0,96169.0,0.10410215]
[1763270783537,0.0524567,96170.0,96169.0,0.10410215]
[1763270785431,0.0524567,96170.0,96164.0,0.0277411]
[1763270785636,0.0524567,96170.0,96154.0,0.10410215]
[1763270785637,0.01636,96165.0,96162.0,0.0277411]
[1763270785854,0.01944208,96164.0,96162.0,0.0277411]
[1763270786113,0.00925,96166.0,96154.0,0.10410215]
[1763270786114,0.03580208,96163.0,96154.0,0.13184325]
[1763270786322,0.02808,96155.0,96154.0,0.13184325]
[1763270786563,0.04752208,96155.0,96154.0,0.10410215]
[1763270786983,0.04752208,96155.0,96150.0,0.02788471]
[1763270787214,0.04752208,96155.0,96147.0,0.02788471]
[1763270787215,0.01636,96151.0,96147.0,0.02788471]
[1763270787429,0.01636,96151.0,96142.0,0.03703125]
[1763270787430,0.01944208,96150.0,96149.0,0.10410215]
[1763270788061,0.03580208,96150.0,96148.0,0.02788471]
[1763270788250,0.03580208,96149.0,96147.0,0.02788471]
[1763270788464,0.01944208,96148.0,96144.0,0.02788471]
[1763270788664,0.01944208,96147.0,96144.0,0.02788471]
[1763270788880,0.01944208,96146.0,96144.0,0.02788471]
[1763270789101,0.01944208,96145.0,96143.0,0.02788471]
[1763270789317,0.01944208,96144.0,96142.0,0.02788471]
[1763270789519,0.02451,96149.0,96134.0,0.10410215]
[1763270789520,0.02451,96149.0,96143.0,0.02788471]
[1763270789722,0.01949097,96148.0,96143.0,0.02788471]
[1763270789942,0.01949097,96147.0,96143.0,0.02788471]
[1763270790169,0.01949097,96146.0,96143.0,0.02788471]
[1763270790387,0.01949097,96145.0,96142.0,0.02788471]
[1763270790636,0.01949097,96144.0,96142.0,0.02788471]
[1763270790807,0.01949097,96143.0,96142.0,0.02788471]
[1763270791144,0.01949097,96143.0,96141.0,0.02788471]
[1763270791413,0.01949097,96142.0,96141.0,0.02788471]
[1763270792156,0.02451,96149.0,96140.0,0.02788471]
[1763270792385,0.01947903,96148.0,96140.0,0.02788471]
[1763270792624,0.01947903,96147.0,96140.0,0.02788471]
[1763270792801,0.01947903,96146.0,96140.0,0.02788471]
[1763270793010,0.01947903,96145.0,96140.0,0.02788471]
[1763270793373,0.02451,96149.0,96139.0,0.02788471]
[1763270793625,0.01172,96141.0,96138.0,0.02788471]
[1763270793832,0.01172,96141.0,96136.0,0.02788471]
[1763270794020,0.01172,96141.0,96135.0,0.02788471]
[1763270794217,0.01172,96135.0,96134.0,0.10410215]
[1763270794536,0.02795,96135.0,96134.0,0.10410215]
[1763270794938,0.04437206,96135.0,96134.0,0.10410215]
[1763270796445,0.04437206,96135.0,96134.0,0.001]
[1763270796648,0.04437206,96135.0,96126.0,0.02788471]
[1763270796822,0.04437206,96135.0,96134.0,0.10410215]
[1763270797029,0.06901206,96135.0,96134.0,0.10510215]
[1763270797787,0.06901206,96135.0,96134.0,0.001]
[1763270799212,0.06901206,96135.0,96120.0,0.02788471]
[1763270799418,0.18304647,96130.0,96119.0,0.13198686]
[1763270799796,0.18304647,96130.0,96120.0,0.04869203]
[1763270800017,0.18304647,96130.0,96121.0,0.00849]
[1763270800220,0.18304647,96130.0,96122.0,0.02080689]
[1763270800448,0.18304647,96130.0,96123.0,0.02080667]
[1763270800746,0.18304647,96130.0,96124.0,0.02080645]
[1763270800945,0.18304647,96134.0,96125.0,0.02080624]
[1763270801170,0.18304647,96134.0,96126.0,0.02080602]
[1763270801365,0.02814206,96135.0,96122.0,0.02080689]
[1763270801613,0.18304647,96132.0,96122.0,0.02080689]
[1763270802977,0.02464,96131.0,96121.0,0.00849]
[1763270803400,0.02464,96131.0,96122.0,0.01880804]
[1763270804576,0.18304647,96132.0,96122.0,0.01880804]
[1763270806306,0.18304647,96132.0,96122.0,0.04669275]
[1763270806987,0.3222224,96132.0,96122.0,0.04669275]
[1763270808224,0.3222224,96132.0,96131.0,0.0085]
[1763270808398,0.01642206,96135.0,96131.0,0.0085]
[1763270808597,0.01642206,96135.0,96134.0,0.10410215]
[1763270810357,0.03265206,96135.0,96134.0,0.10410215]
[1763270811545,0.01642206,96135.0,96134.0,0.10410215]
[1763270812536,0.02814206,96135.0,96134.0,0.10410215]
[1763270813751,0.04437206,96135.0,96134.0,0.10410215]
[1763270815924,0.04437206,96135.0,96134.0,0.13202643]
[1763270816126,0.04437206,96135.0,96134.0,0.10410215]
[1763270817258,0.04437206,96135.0,96130.0,0.03703125]
[1763270817467,0.01623,96131.0,96128.0,0.03703125]
[1763270817687,0.04543446,96134.0,96127.0,0.03703125]
[1763270817865,0.02079446,96134.0,96133.0,0.02794281]
[1763270818262,0.03702446,96134.0,96133.0,0.02794281]
[1763270818857,0.03702446,96134.0,96132.0,0.02794281]
[1763270819091,0.02464,96133.0,96132.0,0.02794281]
[1763270819296,0.04087,96133.0,96132.0,0.02794281]
[1763270820771,0.04087,96133.0,96130.0,0.02794281]
[1763270820977,0.02464,96132.0,96130.0,0.02794281]
[1763270821208,0.02464,96132.0,96131.0,0.02794281]
[1763270821414,0.02464,96132.0,96127.0,0.02794281]
[1763270821631,0.02798,96128.0,96127.0,0.02794281]
[1763270823112,0.02798,96128.0,96122.0,0.02794281]
[1763270823314,0.02464,96127.0,96123.0,0.10410215]
[1763270823927,0.01628,96124.0,96123.0,0.10410215]
[1763270825820,0.0117,96128.0,96123.0,0.10410215]
[1763270826033,0.23120594,96133.0,96123.0,0.10410215]
[1763270826034,0.1074407,96133.0,96127.0,0.02794281]
[1763270826243,0.01181833,96135.0,96124.0,0.02080645]
[1763270826244,0.01181833,96135.0,96131.0,0.02794844]
[1763270826650,0.01181833,96135.0,96131.0,0.02794836]
[1763270827098,0.01181833,96135.0,96134.0,0.02794836]
[1763270827507,0.01181833,96135.0,96129.0,0.03703125]
[1763270827716,0.01181833,96135.0,96134.0,0.02794364]
[1763270827919,0.01181833,96135.0,96129.0,0.03703125]
[1763270828121,0.01181833,96135.0,96134.0,0.02794365]
[1763270828329,0.01181833,96135.0,96129.0,0.03703125]
[1763270829129,0.01181833,96135.0,96134.0,0.02794288]
[1763270829475,0.01181833,96135.0,96129.0,0.03703125]
[1763270829656,0.01181833,96135.0,96134.0,0.02794355]
[1763270829855,0.01181833,96135.0,96129.0,0.03703125]
[1763270830010,0.01181833,96135.0,96134.0,0.02794354]
[1763270830224,0.01181833,96135.0,96129.0,0.03703125]
[1763270830426,0.01181833,96135.0,96134.0,0.02794343]
[1763270830623,0.01181833,96135.0,96130.0,0.0085]
[1763270830851,0.01181833,96135.0,96134.0,0.0279434]
[1763270832649,0.01181833,96135.0,96130.0,0.0085]
[1763270832853,0.01181833,96135.0,96134.0,0.02794159]
[1763270833068,0.01181833,96135.0,96130.0,0.0085]
[1763270834096,0.01181833,96135.0,96134.0,0.02794146]
[1763270834500,0.01181833,96135.0,96131.0,0.03703125]
[1763270834987,0.01181833,96135.0,96130.0,0.04553125]
[1763270835433,9.833e-05,96135.0,96131.0,0.03703125]
[1763270835639,9.833e-05,96135.0,96133.0,0.03703125]
[1763270835870,9.833e-05,96135.0,96132.0,0.02425]
[1763270836082,9.833e-05,96135.0,96132.0,0.07979688]
[1763270836312,9.833e-05,96135.0,96132.0,0.02425]
[1763270836521,9.833e-05,96135.0,96133.0,0.02425]
[1763270837368,9.833e-05,96135.0,96134.0,0.05584169]
[1763270837654,9.833e-05,96135.0,96133.0,0.02425]
[1763270839964,9.833e-05,96135.0,96134.0,0.02080429]
[1763270842298,9.833e-05,96135.0,96134.0,0.07658703]
[1763270845193,9.833e-05,96135.0,96134.0,0.02080429]
[1763270845399,9.833e-05,96135.0,96129.0,0.05578274]
[1763270845400,0.02768833,96135.0,96129.0,0.05578274]
[1763270845600,0.01526,96134.0,96132.0,0.03718634]
[1763270846204,0.01242833,96135.0,96132.0,0.03718634]
[1763270847557,0.01242833,96135.0,96131.0,0.03718634]
[1763270849309,0.02875146,96135.0,96131.0,0.03718634]
[1763270849914,0.01526,96132.0,96131.0,0.03718634]
[1763270850520,0.02875146,96135.0,96131.0,0.03718634]
[1763270851819,0.01242833,96135.0,96131.0,0.03718634]
[1763270852244,0.01242833,96135.0,96132.0,0.03718634]
[1763270852663,0.01646,96133.0,96132.0,0.03718634]
[1763270854217,0.01646,96133.0,96128.0,0.09920148]
[1763270854954,0.01632324,96132.0,96128.0,0.09920148]
[1763270855403,0.01632324,96132.0,96129.0,0.05578274]
[1763270860294,0.01632324,96132.0,96130.0,0.05578274]
[1763270864236,0.01632324,96132.0,96131.0,0.05578274]
[1763270865002,0.01242833,96135.0,96131.0,0.05578274]
[1763270869007,0.01646,96132.0,96128.0,0.05578274]
[1763270869235,0.01242833,96135.0,96130.0,0.02793577]
[1763270869450,0.02778,96131.0,96126.0,0.02793577]
[1763270869690,0.01132,96131.0,96126.0,0.02793577]
[1763270869914,0.01132,96131.0,96125.0,0.02793577]
[1763270869915,0.01646,96127.0,96125.0,0.02793577]
[1763270870142,0.01132,96131.0,96122.0,0.02793577]
[1763270870377,0.01132,96131.0,96110.0,0.10410215]
[1763270870378,0.01646,96121.0,96118.0,0.02793577]
[1763270870607,0.323,96126.0,96118.0,0.02793577]
[1763270870911,0.02778,96119.0,96118.0,0.02793577]
[1763270871110,0.02778,96119.0,96110.0,0.10410215]
[1763270871111,0.02778,96119.0,96115.0,0.02793577]
[1763270871313,0.02778,96119.0,96110.0,0.02793577]
[1763270871314,0.01646,96111.0,96110.0,0.02793577]
[1763270871486,0.01646,96111.0,96107.0,0.02793577]
[1763270871710,0.00907,96108.0,96106.0,0.02793577]
[1763270872030,0.01646,96107.0,96106.0,0.02793577]
[1763270872226,0.01646,96107.0,96104.0,0.02793577]
[1763270872516,0.02475,96106.0,96104.0,0.02793577]
[1763270872700,0.01646,96105.0,96104.0,0.02793577]
[1763270873232,0.01646,96105.0,96102.0,0.02793577]
[1763270873455,0.02475,96104.0,96102.0,0.02793577]
[1763270873672,0.01646,96103.0,96102.0,0.02793577]
[1763270874329,0.01646,96103.0,96101.0,0.02793577]
[1763270874530,0.01132,96102.0,96101.0,0.02793577]
[1763270875321,0.01132,96102.0,96100.0,0.02793577]
[1763270876288,0.01132,96102.0,96099.0,0.02793577]
[1763270878136,0.01132,96102.0,96098.0,0.02793577]
[1763270881284,0.01132,96102.0,96097.0,0.02793577]
[1763270881653,0.01132,96102.0,96097.0,0.03643577]
[1763270882086,0.0276468,96102.0,96097.0,0.03643577]
[1763270883186,0.0163268,96102.0,96097.0,0.03643577]
[1763270884651,0.0163268,96102.0,96099.0,0.02793577]
[1763270885830,0.0163268,96102.0,96100.0,0.02793577]
[1763270886241,0.0163268,96102.0,96101.0,0.02081143]
[1763270889474,0.0163268,96102.0,96101.0,0.0487472]
[1763270891301,0.0163268,96102.0,96101.0,0.02081143]
[1763270891501,0.0163268,96102.0,96098.0,0.02081208]
[1763270893228,0.0163268,96102.0,96098.0,0.0580578]
[1763270894338,0.0163268,96102.0,96099.0,0.03724572]
[1763270894542,0.0163268,96102.0,96100.0,0.02081165]
[1763270894757,0.0163268,96102.0,96101.0,0.02081143]
[1763270896189,0.0163268,96102.0,96101.0,0.04503143]
[1763270896491,0.0163268,96102.0,96101.0,0.08227715]
[1763270897193,0.0163268,96102.0,96101.0,0.04503143]
[1763270898364,0.0163268,96102.0,96101.0,0.02081143]
[1763270898565,0.0163268,96102.0,96101.0,0.0559138]
[1763270899188,0.0163268,96102.0,96098.0,0.02081208]
[1763270899386,0.0163268,96102.0,96091.0,0.07417932]
[1763270899387,0.02723,96099.0,96091.0,0.07417932]
[1763270899603,0.02723,96099.0,96078.0,0.0085]
[1763270899604,0.02723,96099.0,96095.0,0.10410215]
[1763270899837,0.02723,96099.0,96098.0,0.05595503]
[1763270900031,0.02723,96099.0,96095.0,0.10410215]
[1763270901028,0.02723,96099.0,96095.0,0.10510215]
[1763270901428,0.01156,96099.0,96095.0,0.10510215]
[1763270901912,0.01156,96099.0,96095.0,0.10410215]
[1763270904714,0.0163268,96102.0,96095.0,0.10410215]
[1763270904937,0.0163268,96102.0,96100.0,0.05596813]
[1763270907031,0.0163268,96102.0,96101.0,0.05596813]
[1763270907392,0.0319968,96102.0,96101.0,0.05596813]
[1763270908600,0.0163268,96102.0,96101.0,0.05596813]
[1763270911175,0.0319968,96102.0,96101.0,0.05596813]
[1763270911522,0.0269968,96102.0,96101.0,0.05596813]
[1763270911754,0.01567,96102.0,96101.0,0.05596813]
[1763270914131,0.01146,96103.0,96101.0,0.05596813]
[1763270914344,9.827e-05,96104.0,96102.0,0.05596831]
[1763270915382,9.827e-05,96104.0,96103.0,0.05596831]
[1763270924258,9.827e-05,96104.0,96102.0,0.06446831]
[1763270926306,0.02728,96103.0,96102.0,0.05596831]
[1763270930612,0.02728,96103.0,96098.0,0.05596831]
[1763270930990,0.01582,96099.0,96096.0,0.05596831]
[1763270932360,0.01582,96099.0,96095.0,0.16007046]
[1763270934419,0.03225446,96103.0,96095.0,0.16007046]
[1763270934624,0.03225446,96103.0,96101.0,0.03732345]
[1763270935060,0.01582,96102.0,96101.0,0.03732345]
[1763270937339,0.01582,96102.0,96100.0,0.03732345]
[1763270937820,0.01582,96101.0,96100.0,0.03732345]
[1763270938188,0.01146,96103.0,96100.0,0.03732345]
[1763270938389,0.01582,96101.0,96100.0,0.03732345]
[1763270939023,0.01146,96103.0,96100.0,0.03732345]
[1763270941304,0.02089273,96104.0,96101.0,0.05364143]
[1763270941305,9.827e-05,96104.0,96101.0,0.05364143]
[1763270941731,9.827e-05,96104.0,96102.0,0.02321]
[1763270941966,9.827e-05,96104.0,96103.0,0.04341874]
[1763270942367,9.827e-05,96104.0,96102.0,0.04341874]
[1763270942619,9.827e-05,96104.0,96102.0,0.06422996]
[1763270942797,9.827e-05,96104.0,96102.0,0.04341874]
[1763270943005,9.827e-05,96104.0,96103.0,0.02321]
[1763270945560,9.827e-05,96104.0,96103.0,0.044021]
[1763270946059,8.5e-07,96104.0,96103.0,0.11119321]
[1763270947531,8.5e-07,96104.0,96103.0,0.09550321]
[1763270951013,8.5e-07,96104.0,96103.0,0.07469221]
[1763270951196,8.5e-07,96104.0,96103.0,0.09550321]
[1763270951402,8.5e-07,96104.0,96103.0,0.169978]
[1763270952170,8.5e-07,96104.0,96103.0,0.09550321]
[1763270952373,8.5e-07,96104.0,96103.0,0.17096289]
[1763270953045,8.5e-07,96104.0,96103.0,0.17196289]
[1763270955316,8.5e-07,96104.0,96103.0,0.09750321]
[1763270956011,0.0163248,96128.0,96104.0,0.04341874]
[1763270956216,0.0163248,96128.0,96103.0,0.11371321]
[1763270956217,0.0164231,96128.0,96127.0,0.10410215]
[1763270962350,0.0330031,96128.0,96127.0,0.10410215]
[1763270963549,0.0164231,96128.0,96127.0,0.10410215]
[1763270965774,0.0164231,96128.0,96127.0,0.13201042]
[1763270965976,0.0164231,96128.0,96127.0,0.10410215]
[1763270968370,0.0164231,96128.0,96127.0,0.14131317]
[1763270969382,0.0164231,96128.0,96127.0,0.10410215]
[1763270977387,9.83e-05,96128.0,96127.0,0.12490795]
[1763270979394,9.83e-05,96128.0,96127.0,0.18072449]
[1763270983193,9.83e-05,96128.0,96127.0,0.15991869]
[1763270983463,9.83e-05,96128.0,96127.0,0.10410215]
[1763270988395,0.0158783,96128.0,96125.0,0.05581654]
[1763270988601,9.83e-05,96128.0,96127.0,0.10410215]
[1763270988994,0.0158783,96128.0,96127.0,0.10410215]
[1763270989805,0.0158783,96128.0,96124.0,0.0372845]
[1763270990007,0.00875,96125.0,96123.0,0.0372845]
[1763270990407,0.01578,96124.0,96123.0,0.0372845]
[1763270990660,0.01578,96124.0,96121.0,0.0372845]
[1763270990841,0.01578,96124.0,96120.0,0.0372845]
[1763270991052,0.02376,96123.0,96120.0,0.0372845]
[1763270991253,0.01578,96121.0,96120.0,0.0372845]
[1763270993397,0.01578,96121.0,96119.0,0.0372845]
[1763270993620,0.01578,96121.0,96120.0,0.001]
[1763270994159,0.01578,96121.0,96118.0,0.0372845]
[1763270994363,0.01233,96119.0,96117.0,0.0372845]
[1763270994899,0.02865593,96119.0,96117.0,0.0372845]
[1763270997300,0.02865593,96119.0,96116.0,0.0372845]
[1763270999808,0.02865593,96119.0,96112.0,0.10410215]
[1763270999809,0.02865593,96119.0,96117.0,0.0372845]
[1763271001593,0.01632593,96119.0,96118.0,0.0615845]
[1763271001788,0.01183,96139.0,96126.0,0.0085]
[1763271001789,0.21484544,96130.0,96126.0,0.0085]
[1763271001995,0.01642425,96128.0,96127.0,0.10410215]
[1763271002206,9.83e-05,96128.0,96127.0,0.10410215]
[1763271003675,0.0161683,96128.0,96127.0,0.10410215]
[1763271003876,9.83e-05,96128.0,96127.0,0.10410215]
[1763271005197,0.01642348,96128.0,96127.0,0.10410215]
[1763271011717,0.03249348,96128.0,96127.0,0.10410215]
[1763271013076,0.01642348,96128.0,96127.0,0.10410215]
[1763271015683,0.01642348,96128.0,96127.0,0.14134577]
[1763271015889,0.01642348,96128.0,96127.0,0.10410215]
[1763271016825,0.03197348,96128.0,96127.0,0.10410215]
[1763271017384,0.03197348,96128.0,96127.0,0.14134577]
[1763271017759,0.03197348,96128.0,96127.0,0.10410215]
[1763271019057,0.03197348,96128.0,96127.0,0.02795972]
[1763271019224,0.03197348,96128.0,96110.0,0.03127246]
[1763271019225,0.323,96125.0,96124.0,0.02795972]
[1763271019430,0.323,96125.0,96102.0,0.07445968]
[1763271019431,0.01186,96108.0,96105.0,0.02795972]
[1763271019630,0.01186,96108.0,96083.0,0.07445968]
[1763271019631,0.01555,96103.0,96100.0,0.02795972]
[1763271019824,0.01186,96108.0,96100.0,0.02795972]
[1763271020029,0.01186,96108.0,96098.0,0.02795972]
[1763271020030,0.02741,96101.0,96098.0,0.02795972]
[1763271020253,0.01186,96101.0,96094.0,0.02795972]
[1763271020485,0.02491,96100.0,96094.0,0.02795972]
[1763271020784,0.01555,96095.0,96094.0,0.02795972]
[1763271021342,0.01555,96095.0,96092.0,0.02795972]
[1763271021550,0.35977,96101.0,96093.0,0.10410215]
[1763271021957,0.01555,96094.0,96093.0,0.10455257]
[1763271025539,0.02741,96094.0,96093.0,0.10455257]
[1763271029098,0.01186,96094.0,96093.0,0.10455257]
[1763271029899,0.03677,96101.0,96093.0,0.10455257]
[1763271029900,0.01186,96101.0,96093.0,0.10455257]
[1763271030472,0.03265446,96101.0,96093.0,0.10455257]
[1763271030675,0.02741,96094.0,96093.0,0.10455257]
[1763271033016,0.04373937,96094.0,96093.0,0.10455257]
[1763271033219,0.04373937,96094.0,96093.0,0.00145042]
[1763271033590,0.04373937,96094.0,96093.0,0.00045042]
[1763271054447,0.02741,96094.0,96093.0,0.00045042]
[1763271063781,0.08526451,96094.0,96093.0,0.00045042]
[1763271064021,0.39075252,96094.0,96093.0,0.00045042]
[1763271064235,0.36995806,96094.0,96093.0,0.00045042]
[1763271065330,0.01186,96101.0,96093.0,0.02841014]
[1763271065542,0.03265446,96101.0,96099.0,0.10410215]
[1763271065747,0.01186,96101.0,96099.0,0.10410215]
[1763271066641,0.01186,96101.0,96100.0,0.02800351]
[1763271067417,0.02782,96101.0,96100.0,0.02799847]
[1763271068276,0.04861446,96101.0,96097.0,0.02799847]
[1763271068484,0.02079446,96100.0,96096.0,0.02799847]
[1763271068659,0.01596,96097.0,96093.0,0.00045042]
[1763271068856,0.02743,96094.0,96093.0,0.00045042]
[1763271069958,0.02079446,96100.0,96094.0,0.03107]
[1763271070176,0.01632856,96103.0,96098.0,0.03724362]
[1763271070406,0.01632856,96103.0,96099.0,0.07838654]
[1763271070617,0.21502048,96110.0,96099.0,0.07838654]
[1763271070816,0.21502048,96110.0,96109.0,0.13206994]
[1763271071035,0.03422,96118.0,96109.0,0.13206994]
[1763271071237,0.01632749,96110.0,96109.0,0.13206994]
[1763271071441,0.01632749,96110.0,96109.0,0.10410215]
[1763271072107,0.01632749,96110.0,96109.0,0.1413925]
[1763271072320,0.01632749,96110.0,96109.0,0.10410215]
[1763271072570,0.10751024,96119.0,96109.0,0.10410215]
[1763271072790,0.10751024,96119.0,96118.0,0.0085]
[1763271073013,0.01147,96123.0,96114.0,0.02793553]
[1763271073224,0.03226446,96123.0,96114.0,0.02793553]
[1763271073432,0.03226446,96123.0,96113.0,0.02793553]
[1763271073646,0.02079446,96122.0,96113.0,0.02793553]
[1763271074100,0.02079446,96122.0,96112.0,0.02793553]
[1763271074739,0.01147,96123.0,96112.0,0.02793553]
[1763271075173,0.03226446,96123.0,96112.0,0.02793553]
[1763271075387,0.01632715,96121.0,96111.0,0.02793553]
[1763271075748,0.10751024,96120.0,96111.0,0.02793553]
[1763271076176,0.10751024,96120.0,96112.0,0.02793553]
[1763271076402,0.10751024,96120.0,96119.0,0.0085]
[1763271076609,0.01632715,96121.0,96119.0,0.0085]
[1763271076914,0.01632715,96121.0,96112.0,0.02793553]
[1763271077117,0.01632715,96121.0,96110.0,0.03643553]
[1763271077776,0.01632715,96121.0,96111.0,0.02793553]
[1763271078019,0.02769,96111.0,96107.0,0.02793553]
[1763271078269,0.01534,96110.0,96107.0,0.02793553]
[1763271078474,0.01534,96108.0,96106.0,0.02793553]
[1763271078897,0.02769,96107.0,96106.0,0.02793553]
[1763271079108,0.02769,96107.0,96104.0,0.02793553]
[1763271079314,0.02769,96107.0,96102.0,0.03127594]
[1763271079315,0.01534,96103.0,96102.0,0.03127594]
[1763271079532,0.01534,96103.0,96099.0,0.02793553]
[1763271079741,0.02405,96102.0,96099.0,0.02793553]
[1763271079952,0.02405,96102.0,96093.0,0.00045042]
[1763271079953,0.01235,96100.0,96093.0,0.00045042]
[1763271080175,0.01235,96100.0,96094.0,0.10410215]
[1763271080606,0.01235,96100.0,96081.0,0.02405]
[1763271080607,0.01235,96100.0,96081.0,0.02793553]
[1763271080608,2.01534,96094.0,96081.0,0.02793553]
[1763271080829,0.02769,96082.0,96061.0,0.02793553]
[1763271081048,0.02769,96082.0,96071.0,0.10410215]
[1763271081049,0.10751024,96080.0,96071.0,0.10410215]
[1763271081249,0.43051024,96080.0,96079.0,0.0085]
[1763271081448,0.43051024,96080.0,96071.0,0.10410215]
[1763271081638,0.02769,96072.0,96071.0,0.10410215]
[1763271081842,0.02769,96072.0,96064.0,0.02793553]
[1763271082041,0.02769,96072.0,96070.0,0.10410215]
[1763271082042,0.02405,96071.0,96070.0,0.10410215]
[1763271082403,0.03939,96071.0,96070.0,0.10410215]
[1763271083388,0.03939,96071.0,96070.0,0.10610215]
[1763271083582,0.03939,96071.0,96070.0,0.002]
[1763271086774,0.01534,96071.0,96070.0,0.002]
[1763271086934,0.01235,96072.0,96070.0,0.002]
[1763271087791,0.01235,96072.0,96070.0,0.001]
[1763271088263,0.01534,96071.0,96070.0,0.001]
[1763271089051,0.01235,96072.0,96070.0,0.001]
[1763271089274,0.01235,96072.0,96065.0,0.0085]
[1763271089485,0.323,96074.0,96069.0,0.10410215]
[1763271089707,0.323,96074.0,96070.0,0.002]
[1763271090314,0.323,96074.0,96070.0,0.001]
[1763271090754,0.33535,96078.0,96070.0,0.001]
[1763271090970,0.33535,96078.0,96069.0,0.10510215]
[1763271091278,0.21502048,96080.0,96077.0,0.01522]
[1763271091279,0.10751024,96080.0,96077.0,0.01522]
[1763271091443,0.03712761,96082.0,96077.0,0.01522]
[1763271092284,0.03712761,96082.0,96070.0,0.04681815]
[1763271092495,0.21502048,96080.0,96070.0,0.026]
[1763271092933,0.21502048,96080.0,96070.0,0.025]
[1763271093958,0.21502048,96080.0,96070.0,0.026]
[1763271098167,0.10751024,96080.0,96079.0,0.01522]
[1763271098318,0.02079446,96088.0,96079.0,0.01522]
[1763271098521,0.02079446,96088.0,96073.0,0.025]
[1763271098522,0.03288446,96088.0,96084.0,0.10410215]
[1763271098727,0.01209,96088.0,96084.0,0.10410215]
[1763271098933,0.01209,96088.0,96078.0,0.0085]
[1763271099154,0.34379446,96087.0,96085.0,0.10410215]
[1763271101117,0.02079446,96087.0,96085.0,0.10410215]
[1763271101271,0.01209,96088.0,96085.0,0.10410215]
[1763271103701,0.01209,96088.0,96078.0,0.0085]
[1763271103702,0.01643,96086.0,96078.0,0.0085]
[1763271103907,0.02079446,96085.0,96069.0,0.10410215]
[1763271104134,0.02079446,96085.0,96074.0,0.0085]
[1763271104493,0.02079446,96085.0,96084.0,0.10410215]
[1763271105028,0.03722446,96085.0,96084.0,0.10410215]
[1763271111359,0.05355692,96085.0,96084.0,0.10410215]
[1763271113348,0.05355692,96085.0,96078.0,0.02786905]
[1763271113588,0.05355692,96085.0,96084.0,0.10410215]
[1763271114752,0.03722446,96085.0,96084.0,0.10410215]
[1763271118528,0.03722446,96085.0,96074.0,0.0085]
[1763271118529,0.03722446,96085.0,96079.0,0.02786905]
[1763271118906,0.03722446,96085.0,96076.0,0.02786905]
[1763271118907,0.01209,96080.0,96076.0,0.02786905]
[1763271119273,0.01643,96077.0,96076.0,0.02786905]
[1763271120112,0.01643,96077.0,96075.0,0.02786905]
[1763271120342,0.02274,96078.0,96075.0,0.02786905]
[1763271120589,0.02274,96078.0,96070.0,0.02786905]
[1763271120806,0.01643,96071.0,96070.0,0.02786905]
[1763271121061,0.01643,96071.0,96068.0,0.02786905]
[1763271121279,0.01209,96076.0,96066.0,0.02786905]
[1763271121280,0.01209,96072.0,96066.0,0.02786905]
[1763271121488,0.01209,96072.0,96062.0,0.03762704]
[1763271121489,0.02285,96070.0,96065.0,0.02786905]
[1763271121694,0.02285,96070.0,96064.0,0.02786905]
[1763271121910,0.03307208,96070.0,96063.0,0.02786905]
[1763271122318,0.02815,96064.0,96063.0,0.02786905]
[1763271122512,0.02815,96064.0,96062.0,0.00037915]
[1763271122718,0.01588,96063.0,96062.0,0.00037915]
[1763271124314,0.01588,96063.0,96062.0,0.00137915]
[1763271125462,0.01227,96064.0,96062.0,0.00137915]
[1763271125671,0.323,96071.0,96062.0,0.00137915]
[1763271125672,0.323,96071.0,96063.0,0.0085]
[1763271126469,0.323,96071.0,96062.0,0.00137915]
[1763271126674,0.02285,96070.0,96062.0,0.00037915]
[1763271126832,0.04364446,96070.0,96067.0,0.10410215]
[1763271127053,0.02285,96070.0,96067.0,0.10410215]
[1763271127455,0.01209,96072.0,96067.0,0.10410215]
[1763271128041,0.0105144,96078.0,96067.0,0.10410215]
[1763271128042,0.01227,96090.0,96076.0,0.02473]
[1763271128250,0.01227,96090.0,96082.0,0.10410215]
[1763271128251,0.32265682,96086.0,96082.0,0.10410215]
[1763271128466,0.02079446,96085.0,96082.0,0.10410215]
[1763271128876,0.02079446,96085.0,96079.0,0.02786905]
[1763271128877,0.01588,96083.0,96079.0,0.02786905]
[1763271129243,0.01588,96080.0,96076.0,0.02786905]
[1763271129454,0.01588,96080.0,96077.0,0.02798689]
[1763271129660,0.01588,96080.0,96076.0,0.02798689]
[1763271130091,0.02079446,96079.0,96076.0,0.02798689]
[1763271130302,0.02079446,96079.0,96078.0,0.02798689]
[1763271130688,0.02079446,96081.0,96078.0,0.02798689]
[1763271130917,0.02079446,96080.0,96078.0,0.02798689]
[1763271131885,0.02079446,96081.0,96078.0,0.02798689]
[1763271132085,0.02079446,96080.0,96078.0,0.02798689]
[1763271132481,0.01588,96079.0,96078.0,0.02798689]
[1763271132910,0.01588,96079.0,96076.0,0.02798689]
[1763271133256,0.01588,96079.0,96071.0,0.03724789]
[1763271133257,0.03873,96079.0,96071.0,0.03724789]